Cogmind - Beta 16 @@@ ROGUE MODE // 2026.01.03 @ 21:00:51 Player: LYMPH NODE JONES Result: Destroyed by G-34 Mercenary with Small Laser Performance ------------- Evolutions (1) 500 Regions Visited (2) 400 Robots Destroyed (25) 125 Value Destroyed (615) 615 Prototype IDs (0) 0 Alien Tech Used (0) 0 Bonus (0) 0 TOTAL SCORE: 1640 Bonus ------- None Cogmind --------- Core Integrity 0/400 Matter 300/300 Energy 100/100 System Corruption 0% Temperature Cool (6) Movement Core (200) Ox3 Location -9/Materials Parts ------- > --- POWER (1) -------- (None) > --- PROPULSION (2) --- (None) > --- UTILITY (4) ------ Medium Storage Unit Targeting Computer > --- WEAPON (2) ------- (None) > --- INVENTORY (10) --- Light Ion Engine Aluminum Leg Small Storage Unit Faulty Advanced Beam Cannon EMP Blaster Rocket Launcher Datajack Peak State ------------ > --- POWER ------------ Improved Ion Engine > --- PROPULSION ------- Aluminum Leg Aluminum Leg > --- UTILITY ---------- Improved Heat Sink Medium Storage Unit Targeting Computer Core Shielding > --- WEAPON ----------- EM Pulse Gun Particle Cannon > --- INVENTORY -------- Light Ion Engine Aluminum Leg Small Storage Unit EMP Blaster Rocket Launcher Datajack [Rating: 13] Favorites ----------- Power Light Ion Engine Engine Light Ion Engine Power Core Light Nuclear Core Propulsion Aluminum Leg Leg Aluminum Leg Wheel Wheel Utility Targeting Computer Device Improved Heat Sink Storage Medium Storage Unit Processor Targeting Computer Protection Core Shielding Weapon Light Assault Rifle Energy Gun Small Laser Energy Cannon Particle Cannon Ballistic Gun Light Assault Rifle Launcher EMP Blaster Build | -11 -10 -9 ------- Run | Yrd Mat Mat Slots Evolved 2 | . . 2 Power . | . . . Propulsion . | . . . Utility 2 | . . 2 Weapon . | . . . Parts Attached 27 | 8 8 11 Power 6 | 1 2 3 Engine 5 | 1 1 3 Core 1 | . 1 . Reactor . | . . . Propulsion 5 | 4 . 1 Treads . | . . . Leg 3 | 2 . 1 Wheel 2 | 2 . . Hover . | . . . Flight . | . . . Utility 7 | 1 2 4 Device 1 | . . 1 Storage 2 | 1 1 . Processor 2 | . 1 1 Hackware . | . . . Protection 2 | . . 2 Artifact . | . . . Weapon 9 | 2 4 3 Energy Gun 4 | 2 1 1 Energy Cannon 1 | . . 1 Ballistic Gun 3 | . 2 1 Ballistic Cannon . | . . . Launcher 1 | . 1 . Special Weapon . | . . . Impact Weapon . | . . . Slashing Weapon . | . . . Piercing Weapon . | . . . Special Melee Weapon . | . . . Unidentified Prototypes . | . . . Parts Lost 8 | . . 8 Power 2 | . . 2 Propulsion 2 | . . 2 Utility 2 | . . 2 Weapon 2 | . . 2 Highest Loss Streak 4 | . . 4 To Critical Strikes . | . . . Average Backups 6 | 2 7 6 Power 1 | . 1 1 Propulsion 2 | 1 3 1 Utility 1 | . 1 1 Weapon 1 | . 1 2 Tool/Special . | . . . Unused Backups 8 | . . 8 Power 1 | . . 1 Propulsion 3 | . . 3 Utility 1 | . . 1 Weapon 2 | . . 2 Tool/Special 1 | . . 1 Average Slot Usage (%) 96 | . 97 95 Engine 11 | . 12 10 Leg 18 | . 17 19 Wheel 5 | . 10 . Device 2 | . . 4 Storage 12 | . 14 11 Processor 12 | . 12 13 Protection 6 | . . 13 Energy Gun 7 | . 10 4 Energy Cannon 2 | . . 4 Ballistic Gun 14 | . 16 12 Peak Build Rating 13 | 6 9 13 Average Rating 8 | 4 7 10 On Entrance 4 | . 6 8 Avg Prop Armor Cover (%) . | . . . Naked Turns . | . . . Heaviest Build 25 | 11 19 25 Greatest Support 26 | 26 26 20 Greatest Overweight (x) 8 | 3 . 8 Average Overweight (x) . | . . . Largest Inventory Capacity 10 | 8 10 10 Average Capacity 9 | 7 9 10 Most Carried 10 | 6 10 9 Average Carried 6 | 2 7 6 Final Capacity 10 | 8 10 10 Final Carried 10 | 6 10 7 Class Distribution -------------------- 93% | Mutant 6% | Scavenger-Mutant Dominant Class ---------------- Mutant | -10/Materials Mutant | -9/Materials Resources | -11 -10 -9 ----------- Run | Yrd Mat Mat Matter Collected 766 | 247 236 283 Remotely . | . . . Salvage Created 894 | . 320 574 Parts 52 | . 21 31 Haulers Intercepted 3 | . 1 2 Recyclers Shooed . | . . . Parts Field Recycled . | . . . Retrieved Matter . | . . . Parts Self-Destructed . | . . . Prevented . | . . . Parts Restored . | . . . Kills | -11 -10 -9 ------- Run | Yrd Mat Mat Combat Hostiles Destroyed 19 | . 10 9 Guns 18 | . 10 8 Cannons 1 | . . 1 Classes Destroyed 6 | . 3 3 Hauler 3 | . 1 2 Operator 1 | . . 1 Watcher 2 | . . 2 Swarmer 6 | . 6 . Grunt 10 | . 4 6 Sentry 3 | . . 3 Best Kill Streak 4 | . 4 3 Combat Bots Only 4 | . 4 2 Max Kills in Single Turn 2 | . 2 2 Gunslinging 1 | . 1 . Exploded . | . . . Melee . | . . . Uniques/NPCs Destroyed . | . . . Combat | -11 -10 -9 -------- Run | Yrd Mat Mat Hostile Shots Fired 158 | . 27 131 Missed 36 | . 7 29 Hits 122 | . 20 102 Projectile 122 | . 20 102 Critical Strikes 2 | . . 2 Actively Blocked 1 | . . 1 Damage Taken 1511 | . 197 1314 Core 464 | . 64 400 Absorbed by Shields . | . . . Redirected to Shielding 51 | . . 51 Core Remaining (%) 87 | 100 74 . Volleys Fired 91 | . 34 57 Largest 2 | . 2 2 Hottest 108 | . 90 108 Shots Fired 179 | . 65 114 Gun 163 | . 64 99 Cannon 15 | . . 15 Launcher 1 | . 1 . Special . | . . . Kinetic 119 | . 35 84 Thermal 44 | . 29 15 Explosive . | . . . Electromagnetic 16 | . 1 15 Robot Hit Streak 10 | . 7 10 Robot Miss Streak 4 | . 4 4 Penetration Max . | . . . Secondary Targets 3 | . 1 2 Max Gunslinging Chain 1 | . 1 1 Shots Hit Robots 117 | . 38 79 Core Hits 43 | . 17 26 Critical Kills . | . . . Critical Parts Destroyed 1 | . . 1 Critical Strikes 4 | . . 4 Destroy 1 | . . 1 Corrupt 3 | . . 3 Melee Attacks . | . . . Impact . | . . . Slashing . | . . . Piercing . | . . . Sneak Attacks . | . . . Combat Hostiles . | . . . Follow-up Attacks . | . . . Damage Inflicted 1505 | . 482 1023 Guns 1211 | . 415 796 Cannons 227 | . . 227 Explosions 62 | . 62 . Melee . | . . . Ramming 5 | . 5 . Kinetic 846 | . 213 633 Thermal 429 | . 202 227 Explosive . | . . . Electromagnetic 225 | . 62 163 Impact . | . . . Slashing . | . . . Piercing . | . . . Highest Corruption . | . . . Average Corruption . | . . . Corruption Purged . | . . . Corruption Blocked . | . . . Overload Shots . | . . . Overflow Damage 5 | . 5 . Projectiles . | . . . Explosions 5 | . 5 . Melee . | . . . Knockbacks . | . . . Impact . | . . . Kinetic . | . . . Secondary . | . . . Self-Inflicted Damage . | . . . Shots . | . . . Rammed . | . . . Targets Rammed 1 | . 1 . Kicked 1 | . 1 . Crushed . | . . . Highest Temperature 166 | . 166 33 Average Temperature 35 | . 48 13 Received Heat Transfer 750 | . 24 726 Siege Activations . | . . . Martial Activations . | . . . Shielding Activations . | . . . Robots Disrupted . | . . . Combat Hostiles . | . . . Robots Corrupted . | . . . Combat Hostiles . | . . . Parts Fried . | . . . Impact Corruptions . | . . . Robots Melted . | . . . Combat Hostiles . | . . . Parts Melted 3 | . 2 1 Heat Transferred 940 | . 533 407 Parts Sabotaged . | . . . Parts Stolen . | . . . Parts Stripped . | . . . Power Chain Reactions . | . . . Alert | -11 -10 -9 ------- Run | Yrd Mat Mat Maximum Alert Level . | . . . Low Security (%) 100 | 100 100 100 Level 1 . | . . . Level 2 . | . . . Level 3 . | . . . Level 4 . | . . . Level 5 . | . . . High Security . | . . . Max Security . | . . . Peak Influence 155 | . 155 82 Initial 7 | . . 7 Average 50 | . 66 37 Influence Increases 541 | . 273 268 Destroy 0b10 Robot/C 380 | . 200 180 Destroy 0b10 Robot/NC 30 | . 5 25 Destroy Leader 100 | . 42 58 Successful Hack 16 | . 11 5 Lose Combat Pursuer 15 | . 15 . Influence Decreases 541 | . 255 286 Entered New Map 11 | . . 11 Time Decay 490 | . 255 235 Lost Part 40 | . . 40 Squads Dispatched 3 | . 1 2 Investigation . | . . . Extermination . | . . . Reinforcement 3 | . 1 2 Assault . | . . . Garrison . | . . . Intercept . | . . . Searches Triggered . | . . . Construction Impeded . | . . . Haulers Reinforced . | . . . Active Scanning Responses . | . . . Cargo Convoy Interrupts . | . . . Stealth | -11 -10 -9 --------- Run | Yrd Mat Mat Distress Signals 1 | . . 1 Communications Jammed . | . . . Distress Signals . | . . . Times Spotted 33 | . 18 15 Peak Tracking Total 4 | . 4 3 Tactical Retreats 1 | . 1 . Traps | -11 -10 -9 ------- Run | Yrd Mat Mat Traps Triggered 2 | . 2 . Indirectly . | . . . Trap Hack Attempts . | . . . Triggered . | . . . Disarmed . | . . . Reprogrammed . | . . . Reused . | . . . Traps Extracted . | . . . Installed . | . . . Triggered . | . . . Machines | -11 -10 -9 ---------- Run | Yrd Mat Mat Machines Disabled . | . . . Max in Single Turn . | . . . Machines Repaired . | . . . Machines Dismantled . | . . . Machines Sabotaged . | . . . Overloaded Fab Kills . | . . . Hacking | -11 -10 -9 --------- Run | Yrd Mat Mat Machines Accessed 2 | . 1 1 Terminals 2 | . 1 1 Fabricators . | . . . Repair Stations . | . . . Recycling Units . | . . . Scanalyzers . | . . . Garrison Access . | . . . Total Hacks 9 | . 4 5 Successful 7 | . 4 3 Failed 2 | . . 2 Catastrophic . | . . . Database Lockouts . | . . . Manual . | . . . Terminals 9 | . 4 5 Fabricators . | . . . Repair Stations . | . . . Recycling Units . | . . . Scanalyzers . | . . . Garrison Access . | . . . Terminal Hacks 7 | . 4 3 Record 2 | . 2 . Robot Analysis 1 | . 1 . Emergency Access Points 1 | . . 1 Alert Level 1 | . . 1 Locate Traps 1 | . 1 . Zone Layout 1 | . . 1 Fabricator Hacks . | . . . Repair Station Hacks . | . . . Recycling Unit Hacks . | . . . Scanalyzer . | . . . Garrison Access Hacks . | . . . Unauthorized Hacks . | . . . Terminals . | . . . Fabricators . | . . . Repair Stations . | . . . Recycling Units . | . . . Scanalyzers . | . . . Garrison Access . | . . . Data Cores Recovered . | . . . Used . | . . . Hacking Detections 2 | . 1 1 Full Trace Events . | . . . Feedback Events . | . . . Feedback Blocked . | . . . Robot Schematics Acquired . | . . . Robots Built . | . . . Authchips . | . . . Time . | . . . Total Robot Build Rating . | . . . Part Schematics Acquired . | . . . Parts Built . | . . . Authchips . | . . . Time . | . . . Total Part Build Rating . | . . . Part Studies Acquired . | . . . Parts Repaired . | . . . Time . | . . . Parts Recycled . | . . . Recycled Matter . | . . . Retrieved Matter . | . . . Retrieved Components . | . . . Parts Scanalyzed . | . . . Part Schematics Acquired . | . . . Parts Damaged . | . . . Bothacking | -11 -10 -9 ------------ Run | Yrd Mat Mat Used RIF Installer . | . . . Robots Hacked . | . . . Non-combat . | . . . Combat . | . . . Robot Hacks Applied . | . . . Relay Couplers Released . | . . . Fabnet Peak Effective % . | . . . Robots Rewired . | . . . Allies Hacked . | . . . Hacks Repelled . | . . . Allies | -11 -10 -9 -------- Run | Yrd Mat Mat Total Allies . | . . . Largest Group . | . . . Highest-Rated Group . | . . . Highest-Rated Ally . | . . . Total Orders . | . . . Ally Attacks . | . . . Total Damage . | . . . Kills . | . . . Allies Corrupted . | . . . Allies Melted . | . . . Intel | -11 -10 -9 ------- Run | Yrd Mat Mat Active Infowar (turns) 161 | . . 161 Optics 161 | . . 161 Robot Analysis Total 1 | . 1 . Derelict Logs Recovered . | . . . Drone Launches . | . . . Drone Recoveries . | . . . Exploration | -11 -10 -9 ------------- Run | Yrd Mat Mat Turns Passed 1466 | 83 748 635 Spaces Moved 903 | 65 569 269 Core 9 | 5 . 4 Treads . | . . . Legs 625 | 26 334 265 Wheels 269 | 34 235 . Hover . | . . . Flight . | . . . Fastest Speed 50 | 50 90 120 Average Speed 119 | 101 107 150 Slowest Speed 450 | 200 120 450 Overloaded Moves . | . . . Propulsion Burnouts . | . . . Robots Hopped . | . . . Potential Cave-ins . | . . . Cave-ins Triggered . | . . . Exploration Rate (%) 37 | 4 78 29 Regions Visited 2 Branch Regions . Pre-discovered Areas . | . . . Known Exits Taken . | . . . Unknown Exits Taken 2 | 1 1 . Scrap Searched . | . . . Spaces Dug . | . . . Terrain Destroyed . | . . . Melee . | . . . Projectile . | . . . AOE . | . . . Terrain Rammed . | . . . Walls Destroyed . | . . . Machines Disabled . | . . . Actions | -11 -10 -9 --------- Run | Yrd Mat Mat Total 1116 | 78 642 396 Wait 54 | . 13 41 Move 901 | 64 568 269 Hop . | . . . Pick Up 14 | 4 5 5 Fast Attach 22 | 8 7 7 Attach 8 | . 3 5 Detach 3 | 2 1 . Swap 3 | . 3 . Drop 19 | . 7 12 Fire 91 | . 34 57 Melee . | . . . Ram . | . . . Kick 1 | . 1 . Crush . | . . . Escape Stasis . | . . . Rewire . | . . . Trap . | . . . Miscellaneous . | . . . Route ------- -11/Scrapyard -10/Materials (discovered 4 exits: *Mat x2 / [*Min x2]) -9/Materials (discovered 2 exits: [*Min x2]) History --------- Turn | Location | Event 3 | -11/Scrapyard | Discovered new exit (range 16) 84 | -11/Scrapyard | Entered Materials 193 | -10/Materials | Discovered new exit (range 7) 313 | -10/Materials | Build established: Mutant 348 | -10/Materials | Discovered new exit (range 15) 668 | -10/Materials | Discovered new exit (range 6) 761 | -10/Materials | Discovered new exit (range 15) 832 | -10/Materials | Entered another Materials area 832 | -9/Materials | Evolved 2 slots: Utility x2 940 | -9/Materials | Discovered new exit (range 6) 1230 | -9/Materials | Discovered new exit (range 12) 1432 | -9/Materials | Core integrity fell below 50% 1444 | -9/Materials | Lost 3 parts (2n1w) 1458 | -9/Materials | Core integrity fell below 20% 1467 | -9/Materials | Destroyed by G-34 Mercenary with Small Laser Last Messages --------------- 01389_ Transport Network Coupler melted. 01389_ A-02 Transporter destroyed. 01391_ K-01 Serf collects debris. 01402_ Acquired Prototype Energy Cannon. 01403_ K-01 Serf collects debris. 01407_ R-06 Scavenger collects Prototype Energy Gun. 01409_ Aluminum Leg destroyed. 01410_ R-06 Scavenger collects Ion Engine. 01411_ K-01 Serf collects debris. 01413_ EM Pulse Gun destroyed. 01414_ R-06 Scavenger collects Prototype Energy Cannon. 01415_ K-01 Serf collects debris. 01417_ R-06 Scavenger collects Corrupted Aluminum Leg. 01445_ Core Shielding destroyed. 01459_ Imp. Heat Sink destroyed. 01465_ Particle Cannon destroyed. 01465_ Imp. Ion Engine destroyed. Map ----- +----------------------------------------------------+ | ?????????????????????????????????????????????????? | | ?????????????????????????????????????????????????? | | ?????????????????????????????????????????????????? | | ?????????????????????????????????????????????????? | | ?????????????????????????????????????????????????? | | ?????????????????????????????????????????????????? | | ?????????????????????????????????????????????????? | | ?????????????????????????????????????????????????? | | ?????????????????????????????????????????????????? | | ?????????????????????????????????????????????????? | | ?????????????????????????????????????????????????? | | ?????????????????????????????????????????????????? | | ?????????????????????????????????????????????????? | | ?????????????????????????????????????????????????? | | ?????????????????????????????????????????????????? | | ?????????????????????????????????????????????????? | | ?????????????????????????????????????????????????? | | ?????????????????????????????????????????????????? | | ?????????????????????????????????????????????????? | | ?????????????????????????????????????????????????? | | ???????????? #####+############??????????????????? | | ???????????? k u %[=???????????????????? | | ???????????????+?# a gg#????????????????????? | | ?????????????? ?# =%[#????????????????????? | | ?????????????? ?# #????????????????????? | | ??????????????" ?#+##### @ #????????????????????? | | ??????????????" #??????# #????????????????????? | | ??????????????" #??????# #????????????????????? | | ?????????????? #??????# ####????????????????????? | | ?????????????? #??????# #???????????????????????? | | ?????????????? #??????# #???????????????????????? | | #???#########?#+#?????##+#######?????????????????? | | ##### ### ##????# #?????????????????? | | ###### #?????????????????? | | < ## # #?????????????????? | | ## # ####??????????????? | | ##### ## ## # + #??????????? | | #???# "|"!" ## ## # #####+#???????????? | | ????#""|"!""## ## # #?????????????????? | | ????########## ## # #?????????????????? | | ????????????## ## # #?????????????????? | | ????????????# ##+####+####+###???????????????? | | ????????????# #???????????????? | | ????????????# T +???????????????? | | ????????????# =% #???????????????? | | ????????????# ##+########### #???????????????? | | ????????????## ##??????????????#???????????????? | | ?????????????# #???????????????????????????????? | | ?????????????# #???????????????????????????????? | | ?????????????# #???????????????????????????????? | +----------------------------------------------------+ Best States ------------- Heat Dissipation 42 Energy Generation 14 Energy Capacity 265 Matter Stores 300 Matter Capacity 300 Sight Range 18 Terrain Scan Density 10 Core Shielding 20 Evasion (%) 55 Targeting Accuracy 5 Item Schematics ----------------- None Robot Schematics ------------------ None Fabricated ------------ Nothing Repaired ---------- Nothing Studied --------- None Alien Tech Used ----------------- None Achievements -------------- None Challenges ------------ None Game ------ Seed MobileWarpArachnoskeleton Manual? 0 Play Time 00:20:49 Cumulative 10.3 hours Start 2026.01.03 @ 20:38:08 End 2026.01.03 @ 21:00:51 Sessions 1 Manual Loads 0 Difficulty Rogue Special Mode None Game No. 25 Rogue 25 Adventurer 0 Explorer 0 Win Type - Total 0 Types 0/0/0/0/0/0/0/0/0/0 Lore% 4 Gallery% 11 Achievement% 12 Wizard Run 0 Options --------- Layout 1 ASCII 0 Keyboard 0 Movement Arrows Keybinds 0 Fullscreen 1 Font 16/SmallcapsGlow Map View 50x40 Zoom Use 0% Tactical HUD 1 Map Filters NONE Filters NONE Steam SD RUN: 9c6f1656-9c61-48bd-ac87-12f07b1224c3